bitfinex-derivatives/quotes_ETHF0:USTF0_20251119
["timestamp","ask_amount","ask_price","bid_price","bid_amount"]
[1763573591219,0.00512899,2923.8,2923.3,3.2078]
[1763573591421,3.2078,2923.6,2923.2,1.0597498]
[1763573591918,0.55464,2923.3,2923.2,0.0029498]
[1763573592111,0.55464,2923.3,2923.2,1.0597498]
[1763573592313,0.00512899,2923.8,2923.5,1.817]
[1763573592507,0.00512899,2923.8,2923.6,1.817]
[1763573592713,3.2078,2923.7,2923.2,3.6185141]
[1763573592914,3.2078,2923.7,2922.1,3.31482044]
[1763573592915,0.3929,2922.8,2922.7,3.2078]
[1763573593123,0.3929,2922.8,2921.4,15.83909357]
[1763573593124,0.55479,2922.5,2921.4,15.83909357]
[1763573593306,3.2078,2922.3,2921.5,3.2078]
[1763573593511,0.00512899,2922.2,2922.0,1.0568]
[1763573594225,0.00828741,2922.2,2922.0,1.06029733]
[1763573594425,3.2078,2922.6,2922.0,1.06029733]
[1763573594618,0.55474,2922.8,2922.1,3.2078]
[1763573594818,4.11214857,2923.2,2922.6,3.6155643]
[1763573594819,3.2078,2923.2,2922.6,3.6155643]
[1763573595019,4.11214857,2923.5,2922.7,3.2078]
[1763573595316,1.75981485,2923.7,2923.2,1.0568]
[1763573595317,0.55457,2923.7,2923.2,1.0568]
[1763573595521,3.2078,2923.3,2923.2,0.00512899]
[1763573596115,4.57384563,2923.3,2923.2,0.00512899]
[1763573596723,0.55467,2923.2,2922.6,1.0568]
[1763573596930,3.2078,2922.8,2922.6,1.0568]
[1763573597113,3.2078,2922.8,2922.1,3.2078]
[1763573597423,3.76261,2922.4,2922.0,1.06029733]
[1763573597822,0.55498,2921.5,2921.4,12.33319]
[1763573598021,4.01825301,2921.5,2920.8,12.33562]
[1763573598212,3.76289,2920.9,2920.8,12.33562]
[1763573598817,3.76289,2920.9,2920.8,12.338093]
[1763573599023,3.76636235,2920.9,2920.8,12.338093]
[1763573600322,9.76636235,2920.9,2920.8,12.20478124]
[1763573600823,3.76636235,2920.9,2920.8,12.20478124]
[1763573601123,12.32512665,2920.9,2920.8,10.66284574]
[1763573601426,0.55536,2919.5,2919.0,13.40004]
[1763573601629,3.2078,2919.2,2919.0,13.40004]
[1763573602128,3.2078,2919.2,2919.0,12.34324]
[1763573602323,3.2078,2919.2,2919.0,12.34643401]
[1763573602924,0.55544,2919.1,2919.0,12.34643401]
[1763573603423,0.55544,2919.1,2919.0,7.37756063]
[1763573603424,6.55544,2919.1,2919.0,7.37756063]
[1763573603624,12.5042043,2919.1,2917.6,1.0568]
[1763573603827,3.2078,2918.2,2917.6,4.4824]
[1763573604022,3.2078,2918.4,2917.6,4.4824]
[1763573604216,3.2078,2918.4,2917.6,1.0568]
[1763573604416,3.2078,2918.4,2917.6,7.6902]
[1763573604621,3.2078,2919.3,2918.3,1.0568]
[1763573604821,3.2078,2919.3,2918.4,3.2078]
[1763573605018,3.2078,2919.0,2918.5,3.4256]
[1763573605217,3.2078,2918.6,2918.4,3.4256]
[1763573605418,3.2078,2918.6,2917.7,3.2078]
[1763573605820,3.2078,2918.2,2917.6,1.06117234]
[1763573606024,3.2078,2918.5,2918.3,1.3622]
[1763573606223,3.2078,2918.5,2917.8,3.2078]
[1763573606730,3.2078,2918.5,2918.3,1.3622]
[1763573607234,0.00350396,2918.6,2918.3,1.3622]
[1763573607427,3.2078,2918.4,2918.3,3.4256]
[1763573607831,3.2078,2918.4,2918.2,3.4256]
[1763573608130,3.2078,2918.4,2917.9,3.2078]
[1763573608521,3.2078,2918.4,2917.9,6.6334]
[1763573608727,3.2078,2918.1,2917.9,3.4256]
[1763573609034,0.55903396,2918.6,2917.9,3.4256]
[1763573609332,0.00350396,2918.6,2918.3,1.3622]
[1763573609534,0.00350396,2918.6,2918.3,4.7878]
[1763573609733,0.00350396,2918.6,2918.5,3.4256]
[1763573611931,3.21130396,2918.6,2918.5,3.4256]
[1763573612539,9.21130396,2918.6,2917.6,1.06117234]
[1763573612831,3.2078,2918.0,2917.6,1.06117234]
[1763573613223,3.21130396,2918.6,2917.6,4.48677234]
[1763573613423,3.21130396,2918.6,2917.8,3.2078]
[1763573614131,3.21130396,2918.6,2917.8,6.6334]
[1763573614434,3.2078,2918.3,2917.6,4.26897234]
[1763573614736,3.2078,2918.3,2917.6,7.69457234]
[1763573614927,3.2078,2918.3,2917.6,4.26897234]
[1763573615126,3.2078,2918.3,2917.6,7.69457234]
[1763573615330,0.00350396,2918.6,2917.6,7.69457234]
[1763573615331,0.00350396,2918.6,2917.7,3.4256]
[1763573615539,3.21130396,2918.6,2917.7,3.2078]
[1763573615732,3.21130396,2918.6,2917.7,3.4256]
[1763573615930,3.2078,2918.3,2917.7,3.4256]
[1763573616337,3.2078,2918.3,2917.6,4.48677234]
[1763573616531,3.2078,2918.3,2917.6,1.06117234]
[1763573617033,3.2078,2918.3,2917.6,4.48677234]
[1763573617231,3.2078,2918.3,2917.6,1.06117234]
[1763573617638,0.55558,2918.4,2917.6,4.48677234]
[1763573617839,0.55558,2918.4,2917.8,3.2078]
[1763573618039,0.55558,2918.4,2918.3,1.2793]
[1763573618228,0.55563,2918.1,2917.8,3.4256]
[1763573618433,3.2078,2917.9,2917.8,3.4256]
[1763573618634,3.2078,2917.9,2917.6,0.00437234]
[1763573618936,0.5557,2917.7,2917.6,0.00437234]
[1763573619128,0.5557,2917.7,2917.6,3.42997234]
[1763573619334,0.55574,2917.5,2916.4,3.2078]
[1763573619543,3.76354,2917.5,2917.4,15.77575]
[1763573619733,3.76354,2917.5,2917.4,12.35015]
[1763573620037,3.76354,2917.5,2917.4,15.77575]
[1763573620233,3.76354,2917.5,2917.4,15.77967214]
[1763573621140,0.55574,2917.5,2917.4,15.77967214]
[1763573621338,0.00513831,2917.9,2917.6,1.2793]
[1763573621540,0.00513831,2917.9,2917.8,6.6334]
[1763573621843,0.55905396,2918.6,2918.3,1.2793]
[1763573622140,0.34125396,2918.6,2918.5,3.2078]
[1763573622552,3.2078,2919.7,2918.5,3.2078]
[1763573622736,0.00513831,2919.4,2919.0,1.2793]
[1763573623049,0.00853222,2919.4,2919.1,3.2078]
[1763573623741,0.55535,2919.6,2919.1,3.2078]
[1763573623937,0.55535,2919.6,2919.5,3.2078]
[1763573624339,3.2078,2920.3,2919.5,3.2078]
[1763573624538,3.2078,2920.3,2919.0,3.8380643]
[1763573624539,3.76295,2920.6,2919.8,3.2078]
[1763573624740,0.00513831,2920.5,2920.4,1.2793]
[1763573625736,0.00513831,2920.5,2920.1,3.2078]
[1763573625937,0.00513831,2920.5,2920.4,3.2078]
[1763573626333,0.55522,2920.3,2919.9,0.00513831]
[1763573627143,0.55522,2920.3,2920.2,3.2078]
[1763573627442,0.55526,2920.0,2919.9,0.00513831]
[1763573627651,4.65922174,2920.0,2919.9,0.00513831]
[1763573627944,5.48118579,2920.0,2919.9,0.00513831]
[1763573628333,1.37722405,2920.0,2919.9,0.00513831]
[1763573629540,5.48118579,2920.0,2919.9,0.00513831]
[1763573630144,10.92592579,2920.0,2919.5,3.2078]
[1763573630343,0.5554,2919.3,2919.1,3.2078]
[1763573630546,0.5554,2919.3,2918.8,3.2078]
[1763573630741,0.82369847,2919.2,2918.8,3.2078]
[1763573630940,4.40268232,2919.7,2918.8,3.2078]
[1763573630941,0.90217256,2919.4,2918.8,3.2078]
[1763573631344,3.76327,2918.9,2918.8,0.00431371]
[1763573631647,5.78181085,2918.9,2918.8,0.00431371]
[1763573632149,4.58692853,2918.9,2918.8,0.00431371]
[1763573632349,4.58692853,2918.9,2918.8,0.00871919]
[1763573633644,1.37912853,2918.9,2918.8,0.00871919]
[1763573635945,0.82365853,2918.9,2918.8,0.00871919]
[1763573636148,3.2078,2918.5,2916.3,3.2078]
[1763573636346,4.1098704,2917.5,2916.3,3.2078]
[1763573636544,5.78928447,2917.5,2917.4,8.58660999]
[1763573636744,4.58652393,2917.5,2917.4,8.58660999]
[1763573636944,5.78812336,2917.5,2917.4,8.58660999]
[1763573637146,4.59045558,2917.5,2917.4,8.58923658]
[1763573637450,5.79210217,2917.5,2917.4,8.58923658]
[1763573637644,4.59045558,2917.5,2917.4,8.58923658]
[1763573639553,0.55967165,2917.5,2917.4,8.58923658]
[1763573639843,1.38075414,2917.5,2917.4,8.58923658]
[1763573640048,1.38074535,2917.5,2917.4,8.58923658]
[1763573640245,6.96872101,2917.5,2917.4,8.58923658]
[1763573640448,14.1703676,2917.5,2917.4,7.04512651]
[1763573640640,0.55596,2916.4,2915.8,3.2078]
[1763573640953,0.55597,2916.3,2915.5,4.4871]
[1763573641443,3.2078,2917.1,2916.2,4.4871]
[1763573641644,1.37600313,2917.0,2916.9,1.2793]
[1763573641950,0.55588,2916.8,2916.2,1.28260916]
[1763573642149,3.2078,2916.6,2916.2,1.28260916]
[1763573642446,0.55597,2916.3,2916.2,1.38120916]
[1763573642850,3.76377,2916.3,2916.2,0.00330916]
[1763573643245,3.2078,2916.3,2916.2,0.00330916]
[1763573644051,3.76377,2916.3,2916.2,0.00330916]
[1763573645059,3.2078,2916.3,2916.2,0.00330916]
[1763573645255,3.76377,2916.3,2916.2,0.00330916]
[1763573645546,7.99041601,2916.3,2916.2,0.00330916]
[1763573645746,4.58141601,2916.3,2916.2,0.00330916]
[1763573646157,3.76377,2916.3,2916.2,0.00330916]
[1763573646352,0.55597,2916.3,2916.2,1.38120916]
[1763573647459,3.2078,2916.6,2916.2,1.38120916]
[1763573647654,0.55589,2916.8,2916.2,1.38120916]
[1763573647961,0.55589,2916.8,2916.5,3.2078]
[1763573648162,3.2078,2917.2,2916.9,1.3779]
[1763573648859,0.55597,2916.3,2916.2,0.00330916]
[1763573649159,3.76377,2916.3,2916.2,0.00330916]
[1763573649750,3.76377,2916.3,2916.2,9.16e-06]
[1763573651347,3.2078,2916.3,2915.0,3.2078]
[1763573651554,3.2078,2916.3,2916.2,1.3779]
[1763573651747,0.55594,2916.5,2916.2,1.3779]
[1763573651948,3.2078,2916.4,2916.2,1.3779]
[1763573652157,0.55597,2916.3,2916.2,1.3779]
[1763573652353,0.55597,2916.3,2916.2,1.38040608]
[1763573655264,3.2078,2916.4,2916.2,1.38040608]
[1763573655462,0.00513831,2916.5,2916.2,10.58820608]
[1763573655762,3.831e-05,2916.5,2916.2,10.58820608]
[1763573655961,3.831e-05,2916.5,2916.2,0.00250608]
[1763573656868,0.55597,2916.3,2916.2,1.38040608]
[1763573657260,3.831e-05,2916.5,2916.2,1.38040608]
[1763573657665,3.831e-05,2916.5,2916.4,3.2078]
[1763573657963,3.831e-05,2916.5,2916.2,1.38040608]
[1763573658365,0.55597,2916.3,2916.2,0.00250608]
[1763573659368,3.831e-05,2916.5,2916.2,10.58820608]
[1763573659568,3.2078,2917.0,2916.2,4.58820608]
[1763573659764,3.2078,2917.0,2916.5,3.2078]
[1763573660078,3.2078,2917.0,2916.9,1.3779]
[1763573660372,0.55582,2917.1,2916.9,4.5857]
[1763573662466,0.55582,2917.1,2916.9,1.3779]
[1763573662659,0.55582,2917.1,2916.2,1.38040608]
[1763573662660,0.55585,2916.9,2916.4,3.2078]
[1763573662860,3.2078,2917.1,2916.6,3.2078]
[1763573663161,3.2078,2917.1,2916.2,1.38040608]
[1763573663162,0.55596,2916.3,2916.2,0.00250608]
[1763573663573,0.55596,2916.3,2916.2,1.38040608]
[1763573664272,3.2078,2917.1,2916.2,1.38040608]
[1763573664471,3.2078,2917.1,2916.5,3.2078]
[1763573664472,0.55589,2916.7,2916.5,3.2078]
[1763573664972,0.00513831,2917.3,2916.5,3.2078]
[1763573665170,0.00513831,2917.3,2916.9,4.5857]
[1763573665370,0.00513831,2917.3,2917.2,3.2078]
[1763573665971,0.00513831,2917.3,2916.9,4.5857]
[1763573666372,0.00513831,2917.3,2916.9,3.2078]
[1763573666877,0.5559,2916.6,2916.4,3.2078]
[1763573667472,0.00513831,2917.3,2916.4,3.2078]
[1763573667668,0.81723731,2917.2,2916.7,3.2078]
[1763573667873,0.00513831,2917.3,2916.7,3.2078]
[1763573668176,0.81728467,2917.2,2916.7,3.2078]
[1763573668479,0.00513831,2917.3,2916.7,3.2078]
[1763573668675,0.55584,2917.0,2916.9,1.2756]
[1763573669073,0.00513831,2917.3,2916.9,1.2756]
[1763573669476,0.55586,2916.8,2916.7,3.2078]
[1763573669783,0.55583,2917.0,2916.7,3.2078]
[1763573669982,0.00513831,2917.3,2916.9,1.2756]
[1763573670284,0.5558,2917.1,2917.0,3.2078]
[1763573670779,0.55596,2916.3,2916.2,0.00250608]
[1763573671074,0.55613,2915.4,2914.3,3.2078]
[1763573671281,0.55617,2915.2,2914.8,4.4871]
[1763573671476,3.76397,2915.2,2914.8,4.4871]
[1763573671677,3.76397,2915.2,2914.8,1.2793]
[1763573671879,3.76688212,2915.2,2914.8,1.28306844]
[1763573672677,0.55608,2915.7,2915.1,3.2078]
[1763573673181,3.2078,2915.6,2914.8,1.28306844]
[1763573673375,0.55622,2914.9,2914.8,1.28306844]
[1763573673781,0.56062139,2914.9,2914.8,0.00376844]
[1763573674081,3.76842139,2914.9,2914.8,0.00376844]
[1763573675585,0.56062139,2914.9,2914.8,1.38066844]
[1763573675776,3.76842139,2914.9,2914.8,1.38066844]
[1763573676580,0.56062139,2914.9,2914.8,1.38066844]
[1763573676879,0.00440139,2914.9,2914.8,1.38066844]
[1763573678479,0.90249085,2916.0,2914.8,4.58846844]
[1763573678680,3.2078,2915.7,2915.5,1.3769]
[1763573678872,3.76383,2916.0,2915.5,4.5847]
[1763573679077,0.55603,2916.0,2915.5,4.5847]
[1763573679275,0.55603,2916.0,2915.8,3.2078]
[1763573679683,0.55909819,2916.0,2915.8,3.2078]
[1763573680082,0.00306819,2916.0,2915.8,3.2078]
[1763573680479,0.00306819,2916.0,2915.5,6.96487566]
[1763573680680,3.2078,2915.9,2915.5,1.3769]
[1763573680883,0.55606,2915.8,2915.5,4.5847]
[1763573681083,0.00306819,2916.0,2915.5,4.5847]
[1763573681382,0.00306819,2916.0,2915.5,1.3769]
[1763573681589,0.00306819,2916.0,2915.5,4.5847]
[1763573682592,0.00306819,2916.0,2915.8,3.2078]
[1763573682785,0.55593,2916.5,2916.2,1.3769]
[1763573683492,1.79965633,2917.6,2916.2,1.3769]
[1763573683493,0.55563,2918.0,2916.9,1.3769]
[1763573683689,0.00513831,2917.7,2917.6,1.3769]
[1763573684187,3.831e-05,2917.7,2917.6,1.3769]
[1763573684487,0.55967223,2918.0,2917.6,1.3769]
[1763573686480,0.55572,2917.6,2917.2,0.00513831]
[1763573686787,0.00404223,2918.0,2917.6,1.3769]
[1763573687286,0.55569,2917.7,2917.6,1.3769]
[1763573687684,3.76349,2917.7,2917.6,1.3769]
[1763573687882,3.2078,2917.7,2917.2,0.00513831]
[1763573688185,0.55592,2916.5,2916.2,1.3769]
[1763573688385,3.2078,2917.4,2916.9,1.3769]
[1763573688584,0.55582,2917.1,2916.9,1.3769]
[1763573688783,0.55582,2917.1,2916.7,3.2078]
[1763573689185,0.55582,2917.1,2916.9,1.3769]
[1763573689386,0.55583,2917.0,2916.7,3.21143058]
[1763573689692,0.00513831,2917.2,2916.7,3.21143058]
[1763573689693,0.55584,2916.9,2916.7,0.00363058]
[1763573690185,0.55584,2916.9,2916.7,3.21143058]
[1763573690382,0.55584,2916.9,2916.7,0.00363058]
[1763573690583,0.55586,2916.8,2916.7,0.00363058]
[1763573694091,3.2078,2916.7,2914.7,3.2078]
[1763573694300,0.55593,2916.5,2915.5,4.5847]
[1763573694495,3.2078,2916.6,2915.5,1.3769]
[1763573694697,0.55605,2915.9,2915.5,1.3769]
[1763573694884,3.2078,2915.6,2915.5,1.3769]
[1763573695092,0.00331661,2915.6,2915.5,1.37953462]
[1763573695489,0.55940661,2915.6,2915.5,1.37953462]
[1763573696893,0.00331661,2915.6,2915.5,1.37953462]
[1763573697197,3.2078,2916.3,2915.5,4.58733462]
[1763573697499,0.55595,2916.4,2915.6,3.2078]
[1763573697794,0.55595,2916.4,2916.2,1.3769]
[1763573698000,3.76363,2917.0,2916.3,3.2078]
[1763573698201,0.00248123,2916.4,2916.2,1.3769]
[1763573698397,0.55583,2917.0,2916.3,3.2078]
[1763573698597,3.2078,2917.3,2916.6,3.2078]
[1763573698797,3.2078,2917.3,2916.5,3.2078]
[1763573699299,0.55586,2916.8,2916.5,3.2078]
[1763573699496,0.00313018,2916.8,2916.7,3.2078]
[1763573699909,0.55577,2917.3,2916.7,3.2078]
[1763573700115,0.55577,2917.3,2916.9,1.3769]
[1763573700910,0.00953933,2917.2,2916.9,1.3769]
[1763573701314,3.21733933,2917.2,2916.9,1.3769]
[1763573701822,0.00953933,2917.2,2916.9,1.3769]
[1763573702014,3.933e-05,2917.2,2917.1,3.2078]
[1763573702212,0.55568,2917.8,2917.6,1.3277]
[1763573702810,0.55568,2917.8,2917.4,3.2078]
[1763573703124,0.55573,2917.5,2917.4,0.00345965]
[1763573704418,0.55585,2916.9,2916.4,3.2078]
[1763573704916,3.2078,2916.7,2916.1,3.2078]
[1763573705214,0.55603,2916.0,2915.3,3.2078]
[1763573705416,0.56116831,2916.0,2915.8,0.00513831]
[1763573705814,0.56116831,2916.0,2915.9,3.2078]
[1763573706323,0.55603,2915.9,2915.8,0.00513831]
[1763573706511,0.00513831,2916.0,2915.6,3.2078]
[1763573707412,0.00513831,2916.0,2915.6,3.21126511]
[1763573708117,0.00513831,2916.0,2915.9,3.2078]
[1763573709122,3.2078,2916.8,2915.9,3.2078]
[1763573709421,0.55585,2916.9,2916.5,3.2078]
[1763573710026,0.55585,2916.9,2916.2,4.5355]
[1763573710223,0.55585,2916.9,2916.5,3.2078]
[1763573710721,0.55585,2916.9,2916.8,3.2078]
[1763573711819,0.55585,2916.9,2916.4,3.2078]
[1763573712020,0.55591,2916.6,2916.2,1.3277]
[1763573712328,0.55593,2916.5,2916.3,3.2078]
[1763573712626,0.56095831,2917.0,2916.3,3.2078]
[1763573712816,0.56095831,2917.0,2915.6,2.45256868]
[1763573712817,0.556,2916.1,2915.6,0.00346511]
[1763573713023,3.2078,2916.4,2915.6,0.00346511]
[1763573713222,0.55603,2915.9,2915.6,0.00346511]
[1763573713620,0.55603,2915.9,2915.8,3.2078]
[1763573714420,0.55607,2915.7,2915.6,0.00346511]
[1763573714620,3.76731703,2915.7,2915.6,0.00346511]
[1763573715523,0.55951703,2915.7,2915.6,0.00346511]
[1763573716133,1.40178273,2915.7,2915.6,0.00346511]
[1763573716422,0.55951703,2915.7,2915.6,0.00346511]
[1763573722033,0.55951703,2915.7,2915.6,3.21126511]
[1763573722330,0.55951703,2915.7,2915.6,0.00346511]
[1763573722737,0.55951703,2915.7,2915.6,3.21126511]
[1763573723734,0.00344703,2915.7,2915.6,0.00346511]
[1763573724134,0.55951703,2915.7,2915.6,0.00346511]
[1763573724724,3.76731703,2915.7,2915.6,0.00346511]
[1763573727436,0.55951703,2915.7,2915.6,0.00346511]
[1763573728729,3.2078,2916.6,2916.2,1.1935]
[1763573728930,0.55585,2916.9,2916.2,1.1935]
[1763573729129,0.55585,2916.9,2915.6,3.21126511]
[1763573729130,5.7800522,2916.7,2915.6,3.21126511]
[1763573729330,0.55599,2916.2,2915.6,3.21126511]
[1763573729729,0.56023738,2916.2,2915.6,3.21126511]
[1763573729930,3.2078,2915.9,2915.6,0.00346511]
[1763573730134,5.78429958,2916.2,2915.6,0.00346511]
[1763573730340,0.55607,2915.7,2915.6,0.00346511]
[1763573731128,0.00424738,2916.2,2915.6,3.21126511]
[1763573731936,0.00424738,2916.2,2915.6,0.00346511]
[1763573732438,0.55605,2915.8,2915.6,0.00346511]
[1763573733032,0.55607,2915.7,2915.6,0.00346511]
[1763573735941,0.00424738,2916.2,2915.6,0.00346511]
[1763573736239,0.00424738,2916.2,2915.9,3.2078]
[1763573736438,0.00424738,2916.2,2915.6,3.21126511]
[1763573736640,0.556,2916.1,2915.6,3.21126511]
[1763573736838,0.55604,2915.9,2915.6,3.21126511]
[1763573737436,0.55607,2915.7,2915.6,3.21126511]
[1763573737840,0.556,2916.1,2915.6,3.21126511]
[1763573738144,3.2078,2916.0,2915.6,0.00346511]
[1763573738442,0.55607,2915.7,2915.6,0.00346511]
[1763573741948,0.00424738,2916.2,2915.6,3.21126511]
[1763573742142,0.00424738,2916.2,2915.9,3.2078]
[1763573743438,3.2078,2916.5,2915.9,3.2078]
[1763573743640,3.2078,2916.5,2915.6,0.00346511]
[1763573743641,0.55607,2915.7,2915.6,0.00346511]
[1763573743848,4.05889183,2915.7,2914.6,3.2078]
[1763573744046,0.85109183,2915.6,2914.6,3.2078]
[1763573744339,0.55619,2915.1,2914.9,3.2078]
[1763573744746,0.00298004,2915.1,2914.9,3.21049438]
[1763573745046,0.00513831,2915.3,2914.9,3.21049438]
[1763573745248,0.00513831,2915.3,2915.2,3.2078]
[1763573746142,0.00784236,2915.3,2915.2,3.2078]
[1763573748148,4.11263372,2916.4,2916.0,1.2104]
[1763573748448,3.76374,2916.4,2916.0,1.2104]
[1763573749246,0.55596,2916.3,2916.0,1.2104]
[1763573750647,3.21211794,2916.4,2915.9,3.2078]
[1763573750849,0.55603,2915.9,2915.4,1.2104]
[1763573751055,3.2078,2916.0,2915.4,1.2104]
[1763573751648,0.8494323,2915.9,2915.4,1.2104]
[1763573751844,0.5561,2915.6,2915.1,3.2078]
[1763573752046,0.55612,2915.5,2915.1,3.2078]
[1763573753253,0.55612,2915.5,2915.4,4.4182]
[1763573754052,0.55612,2915.5,2915.4,6.4385]
[1763573755559,0.55612,2915.5,2915.4,3.2307]
[1763573755751,0.55613,2915.4,2915.1,3.2078]
[1763573755952,0.55615,2915.3,2915.1,3.2078]
[1763573756949,0.5562,2915.0,2914.9,0.00269438]
[1763573757153,1.7875,2914.5,2914.2,12.36385]
[1763573757352,0.55634,2914.3,2914.2,15.59455]
[1763573757856,0.90483372,2915.1,2914.2,15.59455]
[1763573758052,0.85160994,2915.0,2914.5,3.2078]
[1763573758254,0.55626,2914.8,2914.5,3.21665836]
[1763573758559,0.00780266,2915.0,2914.5,3.21665836]
[1763573758757,0.56400266,2915.0,2914.5,3.21665836]
[1763573758955,0.56400266,2915.0,2914.9,2.0203]
[1763573759158,0.00780266,2915.0,2914.9,2.0203]
[1763573759361,0.55607,2915.7,2914.9,2.0203]
[1763573759559,0.55607,2915.7,2915.2,3.2078]
[1763573760047,0.55609,2915.6,2915.4,1.2104]
[1763573760558,2.34610023,2915.6,2915.5,3.2078]
[1763573760746,0.55860023,2915.6,2915.5,3.2078]
[1763573760952,0.55860023,2915.6,2915.5,5.2281]
[1763573761154,0.55860023,2915.6,2915.5,3.2078]
[1763573761454,0.55611,2915.5,2915.4,1.2104]
[1763573761759,0.55619,2915.1,2915.0,2.0203]
[1763573762453,0.55619,2915.1,2915.0,5.2281]
[1763573762954,0.55619,2915.1,2915.0,2.0203]
[1763573763350,3.2078,2915.5,2915.0,5.2281]
[1763573763556,0.00251023,2915.6,2915.0,5.2281]
[1763573763557,0.00251023,2915.6,2915.4,1.1099]
[1763573763857,3.76391,2915.5,2914.8,1.2104]
[1763573764360,0.55611,2915.5,2914.9,3.2078]
[1763573764657,0.55611,2915.5,2915.4,1.1099]
[1763573764868,0.00251023,2915.6,2915.5,1.6878]
[1763573765158,1.023e-05,2915.6,2915.5,1.6878]
[1763573765658,1.023e-05,2915.6,2915.4,1.1099]
[1763573765850,0.55611,2915.5,2915.0,3.2078]
[1763573766051,0.55613,2915.4,2915.0,3.2078]
[1763573766649,1.2034,2914.9,2914.5,0.00885836]
[1763573766860,0.55624,2914.8,2914.5,0.00885836]
[1763573767055,5.59318243,2914.9,2914.5,0.00885836]
[1763573767653,0.55627,2914.7,2914.5,0.00885836]
[1763573767854,0.55627,2914.7,2914.6,1.6878]
[1763573768868,1.75968,2914.6,2914.5,0.00885836]
[1763573769057,4.96748,2914.6,2914.5,0.00885836]
[1763573769759,1.75974,2914.3,2914.2,11.59087205]
[1763573769965,8.20916805,2914.3,2913.0,1.1099]
[1763573770259,3.76434,2913.3,2912.9,12.36899]
[1763573770458,2.38538243,2913.3,2913.0,1.1099]
[1763573770656,0.00375106,2913.3,2913.0,1.11344204]
[1763573770853,0.00375106,2913.3,2913.0,4.32124204]
[1763573771253,3.2078,2913.2,2913.0,0.00354204]
[1763573772064,0.00375106,2913.3,2913.1,3.2078]
[1763573772458,0.00375106,2913.3,2913.0,1.11344204]
[1763573772863,3.2078,2913.2,2913.0,0.00354204]
[1763573773054,3.2078,2913.2,2913.0,1.11344204]
[1763573774167,1.2034,2913.1,2913.0,0.00354204]
[1763573774664,1.75997,2913.1,2913.0,0.00354204]
[1763573775163,0.55659,2913.0,2911.5,12.37533]
[1763573775365,3.76465,2911.6,2910.6,1.1099]
[1763573775559,3.2078,2911.3,2910.6,1.1099]
[1763573775760,3.76465,2911.6,2910.6,1.1099]
[1763573775962,3.2078,2911.6,2910.9,1.44380371]
[1763573776266,3.2078,2911.7,2911.0,0.005148]
[1763573776475,3.2078,2911.3,2911.0,0.005148]
[1763573776766,3.2078,2911.3,2911.0,3.43794801]
[1763573776962,2.38538243,2911.6,2911.1,4.87660372]
[1763573776963,3.2078,2911.6,2911.1,4.87660372]
[1763573777161,0.55693,2911.3,2911.1,1.44380371]
[1763573777354,7.27084133,2913.0,2911.1,4.87660372]
[1763573777355,3.2078,2911.2,2911.1,4.87660372]
[1763573777560,3.2078,2911.4,2911.3,1.1099]
[1763573777761,3.21044808,2911.4,2911.3,1.1099]
[1763573777963,0.00264808,2911.4,2911.3,5.98650372]
[1763573778167,0.00264808,2911.4,2911.3,4.87660372]
[1763573778359,3.21044808,2911.4,2911.3,4.87660372]
[1763573778961,9.76733808,2911.4,2911.3,4.87660372]
[1763573779261,3.76733808,2911.4,2911.3,4.87660372]
[1763573779469,3.21044808,2911.4,2911.3,2.55370371]
[1763573779671,0.00264808,2911.4,2911.3,2.55370371]
[1763573779867,0.5568,2911.9,2911.3,9.19430372]
[1763573780060,3.2078,2912.6,2912.0,1.1099]
[1763573780263,3.2078,2912.9,2912.3,3.2078]
[1763573780463,3.2078,2913.0,2912.3,3.43280001]
[1763573780665,3.2078,2913.0,2912.3,6.64060001]
[1763573780859,0.005148,2912.9,2912.7,1.1099]
[1763573781060,3.2078,2914.2,2913.4,1.1099]
[1763573781264,3.2078,2913.6,2913.4,3.43280001]
[1763573781465,0.5566,2913.0,2912.6,1.44380371]
[1763573781771,3.76444,2912.7,2912.6,1.44380371]
[1763573781965,3.2078,2913.3,2912.8,1.1099]
[1763573782171,0.0089776,2913.3,2913.2,3.2078]
[1763573782465,0.0089776,2913.3,2912.9,3.2078]
[1763573783069,2.72412645,2914.3,2912.8,1.11931953]
[1763573783070,3.2078,2914.0,2913.2,3.2078]
[1763573783269,3.2078,2913.7,2913.1,1.44380371]
[1763573783569,5.10950888,2914.3,2913.1,1.44380371]
[1763573783570,2.38538243,2913.2,2913.1,1.44380371]
[1763573783769,0.55654,2913.3,2913.1,1.44380371]
[1763573783963,3.2078,2913.6,2913.2,1.44380371]
[1763573784163,3.21058105,2913.6,2913.2,1.44380371]
[1763573784463,3.2078,2913.3,2913.2,1.44380371]
[1763573784667,0.55649,2913.5,2913.2,1.44380371]
[1763573784866,0.00278105,2913.6,2913.3,3.2078]
[1763573785060,0.5563,2914.5,2913.6,1.3576]
[1763573785258,0.5563,2914.5,2914.4,1.3576]
[1763573785668,12.36208,2914.6,2914.4,1.3576]
[1763573785972,12.36599918,2914.6,2914.4,1.3576]
[1763573786171,15.57379918,2914.6,2914.5,1.44380371]
[1763573786467,12.36599918,2914.6,2914.5,1.44380371]
[1763573787068,12.92227918,2914.6,2914.5,1.44380371]
[1763573787271,15.30766161,2914.6,2914.5,1.44380371]
[1763573787469,12.92227918,2914.6,2914.5,1.44380371]
[1763573787668,15.30766161,2914.6,2914.5,0.64189894]
[1763573787865,15.30766161,2914.6,2914.5,0.63769894]
[1763573787866,21.30766161,2914.6,2914.5,0.63769894]
[1763573789075,0.55632,2914.4,2914.3,0.005148]
[1763573789268,3.2078,2914.4,2912.8,1.11417153]
[1763573789471,1.74584546,2914.5,2912.8,1.11417153]
[1763573789472,3.2078,2913.3,2912.8,1.11417153]
[1763573789670,0.55651,2913.4,2912.9,3.2078]
[1763573790367,3.2078,2913.3,2912.9,0.005148]
[1763573790771,2.38538243,2913.1,2912.9,0.005148]
[1763573790975,3.2078,2913.0,2912.9,0.005148]
[1763573792082,0.55659,2913.0,2912.9,0.005148]
[1763573792280,3.76439,2913.0,2912.9,0.005148]
[1763573794284,0.55664,2912.7,2912.0,4.3177]
[1763573794483,3.2078,2913.0,2912.3,3.2078]
[1763573794784,0.55657,2913.1,2912.3,3.2078]